lending/lending_fUSD_20250224
["ID","MTS","AMOUNT","RATE_DAILY","PERIOD"]
[354334634,1740426643710,-1927511.9848812,0.0001,2]
[354334637,1740426643719,-228.61750506,0.0001,2]
[354334640,1740426643727,-254.21203517,0.0001,2]
[354334643,1740426643737,-2400.0,0.0001,3]
[354334646,1740426643746,-5052.89772959,0.0001,2]
[354334648,1740426643756,-164.0,0.0001,3]
[354334649,1740426643765,-2064.04933,0.0001,2]
[354334651,1740426643774,-955.23,0.00010136,2]
[354334654,1740426643784,-955.23,0.00010273,2]
[354334657,1740426643795,-955.23,0.0001041,2]
[354334660,1740426643806,-416.67238042,0.0001041,2]
[354334662,1740426643815,-416.67238042,0.00010438,2]
[354334664,1740426643824,-955.23,0.00010547,2]
[354334666,1740426643834,-955.23,0.00010684,2]
[354334668,1740426643843,-416.67238042,0.00010688,2]
[354334670,1740426643852,-267.89,0.0001078,2]
[354334672,1740426643861,-955.23,0.00010821,2]
[354334674,1740426643871,-955.23,0.00010958,2]
[354334676,1740426643880,-416.67238043,0.00010979,2]
[354334678,1740426643890,-955.23,0.00011095,2]
[354334681,1740426643899,-705.6189711,0.00011099,2]
[354334684,1740426643908,-705.6189711,0.00011099,2]
[354334687,1740426643917,-955.23,0.00011232,2]
[354334690,1740426643926,-267.81293776,0.00011235,2]
[354334693,1740426643935,-705.6189711,0.00011235,2]
[354334696,1740426643944,-955.23,0.00011369,2]
[354334699,1740426643953,-955.23,0.00011506,2]
[354334702,1740426643963,-955.23,0.00011643,2]
[354334705,1740426643972,-205.80130636,0.000117,2]
[354334708,1740426643981,-955.23,0.0001178,2]
[354334711,1740426643990,-267.81293776,0.00011902,2]
[354334714,1740426643999,-705.6189711,0.00011902,2]
[354334716,1740426644009,-955.23,0.00011917,2]
[354334718,1740426644019,-955.23,0.00012054,2]
[354334720,1740426644030,-687.63,0.00012187,2]
[354334723,1740426644039,-955.23,0.00012191,2]
[354334725,1740426644050,-22802.47,0.00012247,2]
[354334727,1740426644059,-282.685281,0.000123,2]
[354334729,1740426644068,-955.23,0.00012328,2]
[354334730,1740426644078,-205.80130636,0.000124,2]
[354334733,1740426644088,-955.23,0.00012465,2]
[354334735,1740426644098,-290.14,0.00012564,2]
[354334736,1740426644110,-267.81293776,0.00012569,2]
[354334738,1740426644121,-705.6189711,0.00012569,2]
[354334741,1740426644131,-955.23,0.00012602,2]
[354334743,1740426644141,-2899.82,0.00012646,2]
[354334745,1740426644150,-2000.0,0.00012693,2]
[354334747,1740426644159,-955.23,0.00012739,2]
[354334749,1740426644168,-731.18,0.00012796,2]
[354334751,1740426644177,-5550.0,0.000128,5]
[354334752,1740426644187,-1000.0,0.00012805,2]
[354334754,1740426644197,-955.23,0.00012876,2]
[354334756,1740426644206,-550.0,0.00013,2]
[354334758,1740426644215,-955.23,0.00013013,2]
[354334761,1740426644225,-267.89,0.00013044,2]
[354334762,1740426644235,-955.36,0.0001315,2]
[354334764,1740426644244,-168.43,0.00013218,2]
[354334766,1740426644253,-267.81293776,0.00013237,2]
[354334768,1740426644262,-705.6189711,0.00013237,2]
[354334770,1740426644271,-200.0,0.00013699,2]
[354334772,1740426644281,-2540.0,0.000139,2]
[354334774,1740426644291,-267.81293776,0.00013904,2]
[354334776,1740426644301,-705.6189711,0.00013904,2]
[354334778,1740426644310,-250.0,0.00014048,2]
[354334780,1740426644319,-250.0,0.00014165,2]
[354334782,1740426644328,-150.0,0.000144,2]
[354334784,1740426644337,-1000.0,0.00014405,2]
[354334786,1740426644350,-500.0,0.00014416,2]
[354334788,1740426644359,-500.0,0.00014416,2]
[354334790,1740426644367,-228.61750503,0.00014467,2]
[354334792,1740426644376,-267.81293776,0.00014571,2]
[354334794,1740426644386,-705.6189711,0.00014571,2]
[354334796,1740426644395,-205.80130636,0.000149,2]
[354334799,1740426644405,-1373.0,0.00015,3]
[354334800,1740426644415,-2064.04933,0.00015,2]
[354334802,1740426644425,-999.0,0.00015068,2]
[354334805,1740426644435,-300.0,0.00015068,2]
[354334806,1740426644444,-510.16,0.00015073,2]
[354334808,1740426644454,-267.81293776,0.00015239,2]
[354334812,1740426644463,-705.6189711,0.00015239,2]
[354334813,1740426644473,-267.89,0.00015308,2]
[354334815,1740426644482,-168.43,0.00015399,2]
[354334817,1740426644491,-150.0,0.00015496,2]
[354334820,1740426644500,-166.66,0.00015593,2]
[354334821,1740426644510,-485.3790438,0.0001568,2]
[354334824,1740426644519,-155.99,0.0001589,2]
[354334826,1740426644529,-3000.0,0.000159,5]
[354334828,1740426644538,-3691.92341068,0.000159,2]
[354334830,1740426644547,-267.81293776,0.00015906,2]
[354334832,1740426644556,-705.6189711,0.00015906,2]
[354334834,1740426644565,-192.92447968,0.00015906,2]
[354334836,1740426644575,-506.90370438,0.00015973,2]
[354334838,1740426644584,-500.0,0.00015973,2]
[354334840,1740426644595,-513.84181287,0.00015973,2]
[354334842,1740426644605,-500.0,0.00015973,2]
[354334844,1740426644614,-1642.9539667,0.00015989,2]
[354334845,1740426644623,-107415.52878648,0.00016,2]
[354334847,1740426644632,-190.53098961,0.00016,2]
[354334849,1740426644642,-150.0,0.00016,2]
[354334852,1740426644651,-2392736.36563857,0.00016,4]
[354334854,1740426644661,-151.0,0.00016,2]
[354334856,1740426644670,-1000.0,0.00016006,2]
[354334857,1740426644680,-9999.99,0.00016116,2]
[354334859,1740426644689,-254.21203516,0.00016275,2]
[354334861,1740426644698,-200.0,0.0001634,2]
[354334863,1740426644708,-155.605678,0.00016438,2]
[354334865,1740426644717,-1038.038844,0.00016438,2]
[354334867,1740426644726,-300.0,0.00016438,2]
[354334869,1740426644736,-150.0,0.00016438,2]
[354334870,1740426644745,-150.0,0.00016438,2]
[354334871,1740426644755,-1038.038844,0.00016491,2]
[354334872,1740426644764,-20000.0,0.000165,2]
[354334873,1740426644773,-1038.038844,0.0001652,2]
[354334874,1740426644783,-1060.88606744,0.00016521,2]
[354334875,1740426644792,-337.68560998,0.00016521,2]
[354334876,1740426644803,-1038.038844,0.00016573,2]
[354334877,1740426644812,-500.0,0.0001658,2]
[354334879,1740426644822,-155.605678,0.00016602,2]
[354334881,1740426644831,-1038.038844,0.00016602,2]
[354334883,1740426644840,-1038.038844,0.00016655,2]
[354334885,1740426644850,-1038.038844,0.00016684,2]
[354334887,1740426644859,-191.29,0.00016712,2]
[354334889,1740426644868,-1038.038844,0.00016767,2]
[354334891,1740426644878,-153.35,0.00016781,2]
[354334893,1740426644887,-155.605678,0.00016849,2]
[354334895,1740426644897,-1038.038844,0.00016849,2]
[354334897,1740426644906,-150.0,0.00016871,2]
[354334899,1740426644916,-166.66,0.0001688,2]
[354334901,1740426644925,-19932.96812122,0.0001688,2]
[354334903,1740426644938,-1692.04651401,0.0001688,2]
[354334920,1740426645102,-263.3,0.0001688,2]
[354334924,1740426645129,-1538.82061803,0.0001688,2]
[354334927,1740426645151,-2544.2367457,0.0001688,2]
[354334929,1740426645162,-2403.10021694,0.0001688,2]
[354334933,1740426645189,-385.11499998,0.0001688,2]
[354334935,1740426645200,-15100.000001,0.0001688,2]
[354334937,1740426645211,-20904.08126018,0.0001688,2]
[354334941,1740426645237,-3974.03812729,0.0001688,2]
[354334945,1740426645260,-5950.08237994,0.0001688,2]
[354334947,1740426645269,-151.0,0.0001688,2]
[354334949,1740426645279,-151.0,0.0001688,2]
[354334951,1740426645288,-151.0,0.0001688,2]
[354334953,1740426645298,-151.0,0.0001688,2]
[354334955,1740426645307,-151.0,0.0001688,2]
[354334956,1740426645317,-151.0,0.0001688,2]
[354334958,1740426645326,-151.0,0.0001688,2]
[354334960,1740426645336,-151.0,0.0001688,2]
[354334962,1740426645345,-151.0,0.0001688,2]
[354334964,1740426645354,-151.0,0.0001688,2]
[354334966,1740426645363,-409.271287,0.0001688,2]
[354334968,1740426645372,-409.271287,0.0001688,2]
[354334970,1740426645380,-151.0,0.0001688,2]
[354334972,1740426645390,-151.0,0.0001688,2]
[354334974,1740426645399,-238.355544,0.0001688,2]
[354334976,1740426645408,-238.355544,0.0001688,2]
[354334978,1740426645417,-164.085491,0.0001688,2]
[354334980,1740426645426,-164.085491,0.0001688,2]
[354334982,1740426645436,-151.0,0.0001688,2]
[354334984,1740426645445,-200.84507,0.0001688,2]
[354334986,1740426645454,-243.860305,0.0001688,2]
[354334988,1740426645464,-152.356982,0.0001688,2]
[354334990,1740426645474,-150.0,0.00016908,2]
[354334992,1740426645484,-150.0,0.0001693,2]
[354334994,1740426645494,-1038.038844,0.00016931,2]
[354334996,1740426645504,-510.16,0.00016957,2]
[354334998,1740426645514,-1038.038844,0.00017013,2]
[354335000,1740426645523,-687.63,0.00017061,2]
[354335002,1740426645532,-1038.038844,0.00017095,2]
[354335004,1740426645542,-250.0,0.00017123,2]
[354335006,1740426645552,-155.605678,0.00017178,2]
[354335008,1740426645561,-1038.038844,0.00017178,2]
[354335010,1740426645571,-1455.91976873,0.000172,2]
[354335012,1740426645581,-1455.91976873,0.000172,2]
[354335014,1740426645590,-376.46,0.0001726,4]
[354335016,1740426645600,-1038.038844,0.0001726,2]
[354335018,1740426645610,-150.0,0.00017304,2]
[354335020,1740426645619,-1038.038844,0.00017342,2]
[354335022,1740426645629,-205.80130636,0.000174,2]
[354335024,1740426645638,-155.605678,0.00017424,2]
[354335026,1740426645647,-1038.038844,0.00017424,2]
[354335028,1740426645657,-1038.038844,0.00017506,2]
[354335030,1740426645667,-27341.62837075,0.00017519,2]
[354335032,1740426645676,-267.89,0.00017572,2]
[354335034,1740426645685,-1038.038844,0.00017589,2]
[354335037,1740426645695,-1000.0,0.00017606,2]
[354335039,1740426645704,-1038.038844,0.00017671,2]
[354335041,1740426645713,-555.89672797,0.00017688,3]
[354335042,1740426645723,-150.0,0.00017736,2]
[354335044,1740426645732,-155.605678,0.00017753,2]
[354335046,1740426645741,-1038.038844,0.00017753,2]
[354335049,1740426645750,-600.0,0.00017808,2]
[354335051,1740426645760,-350.0,0.00017808,2]
[354335053,1740426645770,-1038.038844,0.00017835,2]
[354335054,1740426645779,-600.0,0.000179,6]
[354335057,1740426645789,-1038.038844,0.00017917,2]
[354335059,1740426645799,-500.0,0.00017973,2]
[354335061,1740426645809,-500.0,0.00017988,2]
[354335063,1740426645819,-10000.0,0.00018,2]
[354335065,1740426645827,-1138.54612133,0.00018,2]
[354335067,1740426645837,-10000.0,0.00018,2]
[354335069,1740426645846,-10000.0,0.00018,2]
[354335071,1740426645855,-151.0,0.00018,2]
[354335073,1740426645864,-153.18008,0.00018,2]
[354335075,1740426645874,-151.0,0.00018,2]
[354335077,1740426645883,-151.0,0.00018,2]
[354335079,1740426645892,-151.0,0.00018,2]
[354335081,1740426645902,-151.0,0.00018,2]
[354335083,1740426645912,-151.0,0.00018,2]
[354335085,1740426645921,-151.0,0.00018,2]
[354335087,1740426645930,-409.271287,0.00018,2]
[354335089,1740426645940,-409.271287,0.00018,2]
[354335091,1740426645949,-151.0,0.00018,2]
[354335093,1740426645958,-171.02811,0.00018,2]
[354335095,1740426645968,-238.355544,0.00018,2]
[354335097,1740426645977,-238.355544,0.00018,2]
[354335099,1740426645986,-164.085491,0.00018,2]
[354335101,1740426645995,-164.085491,0.00018,2]
[354335103,1740426646004,-23704.111923,0.00018,2]
[354335105,1740426646013,-151.0,0.00018,2]
[354335107,1740426646027,-1038.038844,0.00018,2]
[354335109,1740426646036,-155.605678,0.00018082,2]
[354335111,1740426646045,-1038.038844,0.00018082,2]
[354335113,1740426646055,-200.0,0.00018082,2]
[354335115,1740426646065,-500.0,0.00018088,2]
[354335117,1740426646074,-1000.0,0.00018091,2]
[354335119,1740426646083,-109532.6463825,0.000181,2]
[354335122,1740426646093,-244.0,0.000181,2]
[354335125,1740426646102,-151.0,0.000181,2]
[354335127,1740426646111,-151.0,0.000181,2]
[354335130,1740426646120,-151.0,0.000181,2]
[354335133,1740426646129,-167.186803,0.000181,2]
[354335136,1740426646138,-151.0,0.000181,2]
[354335139,1740426646147,-163.49699,0.000181,2]
[354335142,1740426646155,-409.271287,0.000181,2]
[354335145,1740426646164,-409.271287,0.000181,2]
[354335148,1740426646173,-151.0,0.000181,2]
[354335151,1740426646182,-238.355544,0.000181,2]
[354335154,1740426646191,-238.355544,0.000181,2]
[354335158,1740426646200,-164.085491,0.000181,2]
[354335161,1740426646209,-164.085491,0.000181,2]
[354335164,1740426646219,-151.0,0.000181,2]
[354335167,1740426646227,-166.66,0.00018166,2]
[354335170,1740426646236,-150.0,0.00018169,2]
[354335173,1740426646245,-500.0,0.00018188,2]
[354335176,1740426646254,-500.0,0.00018288,2]
[354335180,1740426646263,-500.0,0.00018388,2]
[354335184,1740426646273,-500.0,0.00018488,2]
[354335187,1740426646282,-364.78731787,0.00018493,2]
[354335190,1740426646291,-1000.0,0.00018521,2]
[354335193,1740426646301,-500.0,0.00018588,2]
[354335196,1740426646310,-150.0,0.00018601,2]
[354335199,1740426646320,-500.0,0.00018688,2]
[354335202,1740426646329,-500.0,0.00018788,2]
[354335205,1740426646338,-510.16,0.00018841,2]
[354335208,1740426646347,-500.0,0.00018888,2]
[354335211,1740426646357,-500.0,0.00018988,2]
[354335214,1740426646366,-300.0,0.00019,2]
[354335217,1740426646375,-150.0,0.00019034,2]
[354335220,1740426646384,-228.61750503,0.00019034,2]
[354335223,1740426646393,-500.0,0.00019088,2]
[354335226,1740426646403,-500.0,0.00019188,2]
[354335228,1740426646413,-300.0,0.0001919,2]
[354335230,1740426646423,-1000.0,0.00019207,2]
[354335232,1740426646433,-500.0,0.00019288,2]
[354335234,1740426646442,-300.0,0.0001938,2]
[354335236,1740426646451,-500.0,0.00019388,2]
[354335238,1740426646460,-480.75,0.00019397,30]
[354335240,1740426646469,-150.0,0.00019466,2]
[354335242,1740426646478,-500.0,0.00019488,2]
[354335244,1740426646488,-1500.0,0.00019522,2]
[354335246,1740426646498,-300.0,0.0001957,2]
[354335248,1740426646507,-500.0,0.00019588,2]
[354335249,1740426646516,-500.0,0.00019688,2]
[354335251,1740426646526,-300.0,0.0001976,2]
[354335253,1740426646535,-500.0,0.00019788,2]
[354335255,1740426646545,-267.89,0.00019836,2]
[354335257,1740426646556,-500.0,0.00019888,2]
[354335259,1740426646566,-150.0,0.00019899,2]
[354335262,1740426646576,-10719.35362809,0.00019899,2]
[354335264,1740426646586,-205.80130636,0.000199,2]
[354335265,1740426646596,-500.0,0.00019988,2]
[354335267,1740426646605,-2000.0,0.0002,2]
[354335269,1740426646615,-1771.18362983,0.0002,2]
[354335272,1740426646629,-292.86570017,0.0002,2]
[354335274,1740426646638,-2000.0,0.0002001,2]
[354335276,1740426646648,-3989.280535,0.0002002,2]
[354335278,1740426646657,-500.0,0.00020088,2]
[354335280,1740426646667,-500.0,0.00020188,2]
[354335282,1740426646677,-500.0,0.00020288,2]
[354335283,1740426646686,-150.0,0.00020332,2]
[354335284,1740426646697,-500.0,0.00020388,2]
[354335285,1740426646707,-500.0,0.00020488,2]
[354335286,1740426646716,-500.0,0.00020588,2]
[354335287,1740426646728,-500.0,0.00020688,2]
[354335288,1740426646737,-510.119054,0.000207,2]
[354335289,1740426646747,-510.16,0.00020725,2]
[354335290,1740426646757,-3335.46325671,0.00020728,40]
[354335292,1740426646767,-151.0,0.00020728,2]
[354335294,1740426646776,-150.0,0.00020764,2]
[354335296,1740426646786,-500.0,0.00020788,2]
[354335297,1740426646795,-1011.68277068,0.0002082,2]
[354335299,1740426646808,-500.0,0.00020888,2]
[354335303,1740426646818,-500.0,0.00020988,2]
[354335304,1740426646828,-1509.83338989,0.00021,2]
[354335307,1740426646839,-500.0,0.00021088,2]
[354335309,1740426646849,-500.0,0.00021188,2]
[354335311,1740426646859,-150.0,0.00021197,2]
[354335313,1740426646868,-500.0,0.00021288,2]
[354335315,1740426646877,-500.0,0.00021388,2]
[354335317,1740426646886,-500.0,0.00021488,2]
[354335319,1740426646896,-500.0,0.00021588,2]
[354335321,1740426646905,-150.0,0.00021629,2]
[354335323,1740426646914,-500.0,0.00021688,2]
[354335325,1740426646924,-500.0,0.00021788,2]
[354335327,1740426646933,-500.0,0.00021888,2]
[354335329,1740426646943,-480.75,0.00021981,30]
[354335331,1740426646953,-500.0,0.00021988,4]
[354335333,1740426646963,-249.69,0.00022,2]
[354335335,1740426646973,-150.0,0.00022062,2]
[354335337,1740426646983,-500.0,0.00022088,3]
[354335338,1740426646994,-267.89,0.000221,2]
[354335341,1740426647004,-500.0,0.00022188,2]
[354335343,1740426647014,-205.80130636,0.000224,3]
[354335344,1740426647025,-150.0,0.00022494,2]
[354335347,1740426647038,-1455.91976873,0.0002255,17]
[354335349,1740426647051,-191.29,0.00022603,2]
[354335351,1740426647062,-510.16,0.00022609,2]
[354335353,1740426647073,-254.21203516,0.0002265,2]
[354335355,1740426647083,-150.0,0.00022927,2]
[354335357,1740426647093,-204.0,0.0002299,12]
[354335359,1740426647104,-155.99,0.00023014,2]
[354335360,1740426647114,-749.09,0.000231,7]
[354335362,1740426647124,-150.0,0.0002336,2]
[354335365,1740426647134,-1140.81942229,0.00023453,2]
[354335367,1740426647144,-228.61750503,0.00023601,2]
[354335368,1740426647153,-151.0,0.00023659,7]
[354335370,1740426647164,-151.0,0.00023659,7]
[354335373,1740426647177,-151.0,0.00023659,7]
[354335375,1740426647186,-409.271287,0.00023659,7]
[354335377,1740426647197,-409.271287,0.00023659,7]
[354335379,1740426647207,-151.0,0.00023659,7]
[354335381,1740426647216,-238.355544,0.00023659,7]
[354335383,1740426647225,-238.355544,0.00023659,7]
[354335384,1740426647234,-164.085491,0.00023659,7]
[354335386,1740426647243,-164.085491,0.00023659,7]
[354335388,1740426647253,-151.0,0.00023659,7]
[354335390,1740426647262,-2028.0,0.00023659,2]
[354335392,1740426647271,-1275.0,0.00023659,2]
[354335394,1740426647280,-699.267,0.00023659,2]
[354335396,1740426647289,-570.0,0.00023659,2]
[354335398,1740426647303,-784.0,0.00023659,2]
[354335400,1740426647312,-1424.0,0.00023659,2]
[354335402,1740426647322,-908.0,0.00023659,2]
[354335405,1740426647331,-540.0,0.00023659,2]
[354335407,1740426647341,-1267.0,0.00023659,2]
[354335409,1740426647350,-4033.0,0.00023659,2]
[354335410,1740426647359,-150.0,0.00023659,2]
[354335412,1740426647368,-3921.0,0.00023659,2]
[354335414,1740426647378,-610.67,0.00023659,2]
[354335416,1740426647387,-1110.0,0.00023659,2]
[354335418,1740426647396,-150.0,0.00023792,2]
[354335420,1740426647405,-188.71,0.00023836,2]
[354335422,1740426647415,-150.0,0.00024225,2]
[354335425,1740426647425,-267.89,0.00024364,2]
[354335426,1740426647435,-480.75,0.00024565,30]
[354335428,1740426647444,-150.5,0.00024645,120]
[354335431,1740426647454,-150.5,0.00024655,120]
[354335432,1740426647463,-150.0,0.00024657,2]
[354335434,1740426647472,-1000.0,0.00024658,2]
[354335437,1740426647483,-5000.0,0.00024658,2]
[354335439,1740426647492,-5000.0,0.00024658,2]
[354335441,1740426647501,-5000.0,0.00024658,2]
[354335443,1740426647510,-5000.0,0.00024658,2]
[354335445,1740426647520,-5000.0,0.00024658,2]
[354335447,1740426647529,-5000.0,0.00024658,2]
[354335449,1740426647538,-5000.0,0.00024658,2]
[354335450,1740426647548,-5000.0,0.00024658,2]
[354335452,1740426647557,-5000.0,0.00024658,2]
[354335454,1740426647567,-5000.0,0.00024658,2]
[354335456,1740426647575,-5000.0,0.00024658,2]
[354335458,1740426647585,-306.231368,0.00024658,2]
[354335460,1740426647594,-150.5,0.00024665,120]
[354335462,1740426647603,-153.35,0.00024795,2]
[354335464,1740426647612,-205.80130636,0.000249,4]
[354335466,1740426647621,-1185.0,0.00025,3]
[354335468,1740426647631,-198.46123644,0.00025,2]
[354335471,1740426647640,-2064.04933,0.00025,2]
[354335472,1740426647649,-208.973299,0.00025159,7]
[354335475,1740426647659,-554.64891772,0.00025378,2]
[354335477,1740426647668,-267.89,0.00026628,2]
[354335479,1740426647677,-409.271287,0.00026659,7]
[354335481,1740426647687,-409.271287,0.00026659,7]
[354335483,1740426647696,-238.355544,0.00026659,7]
[354335485,1740426647706,-238.355544,0.00026659,7]
[354335487,1740426647716,-1071.991,0.00026659,2]
[354335488,1740426647725,-1275.0,0.00026659,2]
[354335490,1740426647734,-639.0,0.00026659,2]
[354335493,1740426647744,-570.0,0.00026659,2]
[354335495,1740426647753,-369.659,0.00026659,2]
[354335496,1740426647762,-907.0,0.00026659,2]
[354335498,1740426647771,-540.0,0.00026659,2]
[354335500,1740426647780,-1263.0,0.00026659,2]
[354335518,1740426647940,-4033.0,0.00026659,2]
[354335520,1740426647950,-150.0,0.00026659,2]
[354335522,1740426647959,-3921.0,0.00026659,2]
[354335524,1740426647969,-2000.0,0.00027,2]
[354335526,1740426647979,-151.0,0.00027,7]
[354335528,1740426647989,-2123.499631,0.0002701,2]
[354335530,1740426647998,-480.75,0.00027149,30]
[354335532,1740426648007,-250.0,0.0002737,2]
[354335534,1740426648019,-151.0,0.000274,7]
[354335536,1740426648030,-205.80130636,0.000274,4]
[354335538,1740426648041,-150.0,0.00027557,2]
[354335540,1740426648053,-151.44,0.00027557,2]
[354335542,1740426648065,-150.075,0.00027559,2]
[354335544,1740426648074,-150.0,0.00027559,2]
[354335546,1740426648084,-150.0,0.00027559,2]
[354335548,1740426648094,-3691.92341066,0.000279,2]
[354335550,1740426648105,-228.61750503,0.00028168,2]
[354335552,1740426648116,-191.29,0.00028493,2]
[354335554,1740426648126,-267.89,0.00028892,2]
[354335556,1740426648135,-624.24,0.000289,14]
[354335558,1740426648145,-1455.91976873,0.00028975,55]
[354335560,1740426648155,-254.21203516,0.00029025,2]
[354335562,1740426648165,-231251.18583552,0.000294,2]
[354335594,1740426648549,-187999.99999988,0.000294,2]
[354335601,1740426648912,-317.509609,0.00018164,2]
[354335602,1740426648923,-295.82099923,0.00018164,2]
[354335603,1740426648951,-418.18435819,0.00018164,2]
[354335604,1740426648963,-6.52387758,0.00018164,2]
[354335605,1740426648973,-1038.038844,0.00018246,2]
[354335606,1740426648983,-753.23416404,0.00018328,2]
[354335607,1740426648994,-284.80467996,0.00018328,2]
[354335608,1740426649004,-518.11771717,0.000294,2]
[354335609,1740426649021,-663.9183381,0.000294,2]
[354335610,1740426649033,-646.41911059,0.000294,2]
[354335611,1740426649055,-1613.70970627,0.000294,2]
[354335612,1740426649067,-1579.01249017,0.000294,2]
[354335613,1740426649078,-470.0,0.000294,2]
[354335614,1740426649089,-768.66840682,0.000294,2]
[354335615,1740426649101,-1001.48,0.000294,2]
[354335616,1740426649123,-243330.18565528,0.000294,2]
[354335617,1740426649133,-151.0,0.000294,7]
[354335618,1740426649142,-151.0,0.000294,7]
[354335619,1740426649151,-151.0,0.000294,7]
[354335620,1740426649161,-151.0,0.000294,7]
[354335621,1740426649170,-151.0,0.000294,7]
[354335622,1740426649180,-409.271287,0.000294,7]
[354335623,1740426649189,-409.271287,0.000294,7]
[354335624,1740426649200,-151.0,0.000294,7]
[354335625,1740426649209,-238.355544,0.000294,7]
[354335626,1740426649218,-238.355544,0.000294,7]
[354335627,1740426649228,-164.085491,0.000294,7]
[354335628,1740426649238,-164.085491,0.000294,7]
[354335629,1740426649247,-151.0,0.000294,7]
[354335630,1740426649257,-1275.0,0.00029659,2]
[354335631,1740426649266,-567.0,0.00029659,2]
[354335632,1740426649276,-512.292,0.00029659,2]
[354335633,1740426649285,-1683.614,0.00029659,2]
[354335634,1740426649295,-150.0,0.00029659,2]
[354335635,1740426649307,-3921.0,0.00029659,2]
[354335636,1740426649317,-480.75,0.00029733,30]
[354335637,1740426649327,-205.80130636,0.000299,5]
[354335638,1740426649336,-150.0,0.00029922,30]
[354335639,1740426649346,-150.0,0.00029922,30]
[354335640,1740426649356,-150.0,0.00029922,30]
[354335641,1740426649365,-2095.06993685,0.00029922,30]
[354335642,1740426649375,-742.80152611,0.00029922,30]
[354335643,1740426649385,-8093.87557834,0.00029922,30]
[354335644,1740426649396,-9527.18121971,0.00029922,30]
[354335645,1740426649406,-2064.04933,0.0003,2]
[354335646,1740426649416,-155.99,0.00030137,2]
[354335647,1740426649426,-150.0,0.00030139,7]
[354335648,1740426649436,-150.0,0.00030557,2]
[354335649,1740426649447,-150.0,0.00030559,2]
[354335650,1740426649456,-150.0,0.00030559,2]
[354335651,1740426649466,-2680.491778,0.000306,4]
[354335652,1740426649476,-214.0,0.0003074,2]
[354335653,1740426649485,-267.89,0.00031155,2]
[354335654,1740426649495,-4174.93609688,0.0003143,4]
[354335655,1740426649505,-17992.50157541,0.00031781,7]
[354335656,1740426649519,-12007.49842459,0.00031781,7]
[354335657,1740426649528,-214.005412,0.00031781,7]
[354335658,1740426649538,-151.0,0.00031781,7]
[354335659,1740426649552,-214.0,0.000319,2]
[354335660,1740426649562,-2000.0,0.00032,120]
[354335661,1740426649572,-554.64891772,0.00032125,2]
[354335662,1740426649582,-5006.01784761,0.000322,120]
[354335663,1740426649592,-409.271287,0.000322,7]
[354335664,1740426649602,-409.271287,0.000322,7]
[354335665,1740426649612,-238.355544,0.000322,7]
[354335666,1740426649622,-238.355544,0.000322,7]
[354335667,1740426649631,-151.0,0.00032317,7]
[354335668,1740426649640,-480.75,0.00032317,30]
[354335669,1740426649649,-205.80130636,0.000324,6]
[354335670,1740426649658,-280.72285356,0.000325,30]
[354335671,1740426649668,-150.0,0.000325,30]
[354335672,1740426649677,-2072.08746968,0.000325,30]
[354335673,1740426649690,-151.0,0.000325,7]
[354335674,1740426649699,-164.085491,0.000325,7]